bitfinex-derivatives/quotes_BTCF0:USTF0_20241023
["timestamp","ask_amount","ask_price","bid_price","bid_amount"]
[1729653742586,0.059706,67031.0,67030.0,0.0002]
[1729653742774,0.229706,67031.0,67030.0,0.0002]
[1729653742972,0.26465501,67031.0,67030.0,0.0002]
[1729653743472,0.26465501,67031.0,67015.0,0.05972]
[1729653743473,0.059712,67024.0,67015.0,0.05972]
[1729653743679,0.62545247,67024.0,67016.0,0.06215705]
[1729653743979,0.62545247,67024.0,67016.0,0.00243805]
[1729653744176,0.66524472,67024.0,67016.0,0.00243805]
[1729653744789,0.66524472,67024.0,67018.0,0.059718]
[1729653745370,0.66524472,67024.0,67019.0,0.059717]
[1729653745586,0.66524472,67024.0,67016.0,0.00243805]
[1729653745787,0.62545247,67024.0,67016.0,0.00243805]
[1729653746370,0.62545247,67024.0,67021.0,0.059715]
[1729653747082,0.62545247,67024.0,67016.0,0.00243805]
[1729653747393,0.66511229,67024.0,67021.0,0.059714]
[1729653747881,0.39574047,67024.0,67023.0,0.059913]
[1729653748069,0.39500015,67024.0,67023.0,0.059913]
[1729653748575,0.03420015,67024.0,67023.0,0.059913]
[1729653749875,0.5308,67024.0,67016.0,0.00243805]
[1729653750189,0.229719,67017.0,67016.0,0.00243805]
[1729653750494,0.229719,67017.0,67016.0,0.0002]
[1729653750879,0.17,67017.0,67016.0,0.0002]
[1729653751080,0.3608,67018.0,67016.0,0.0002]
[1729653751283,0.3608,67018.0,67017.0,0.0002]
[1729653751482,0.590518,67018.0,67017.0,0.0002]
[1729653756784,0.420518,67018.0,67017.0,0.0002]
[1729653757187,0.059718,67018.0,67017.0,0.0002]
[1729653757488,0.229718,67018.0,67017.0,0.0002]
[1729653758291,0.590518,67018.0,67017.0,0.0002]
[1729653758484,0.229718,67018.0,67017.0,0.0002]
[1729653763391,0.059718,67018.0,67017.0,0.0002]
[1729653763593,0.229718,67018.0,67017.0,0.0002]
[1729653767392,0.229718,67018.0,67017.0,0.07458736]
[1729653768391,0.229718,67018.0,67017.0,0.17345633]
[1729653769291,0.229718,67018.0,67017.0,0.09906897]
[1729653771698,0.229718,67018.0,67017.0,0.09918028]
[1729653772295,0.169718,67018.0,67017.0,0.09918028]
[1729653772692,0.530518,67018.0,67017.0,0.09918028]
[1729653773002,0.530518,67018.0,67017.0,0.0002]
[1729653774491,0.56529341,67018.0,67017.0,0.0002]
[1729653776096,0.059721,67014.0,67013.0,0.0002]
[1729653776303,0.31449641,67014.0,67013.0,0.0002]
[1729653777199,0.34579641,67014.0,67013.0,0.0002]
[1729653777397,0.44819641,67014.0,67013.0,0.0002]
[1729653778504,0.39819641,67014.0,67013.0,0.0002]
[1729653780104,0.363421,67014.0,67013.0,0.0002]
[1729653780895,0.261021,67014.0,67013.0,0.0002]
[1729653781700,0.27785054,67014.0,67013.0,0.0002]
[1729653781995,0.27785054,67014.0,67013.0,0.09973586]
[1729653783403,0.27785054,67014.0,67013.0,0.17428178]
[1729653784509,0.27785054,67014.0,67013.0,0.07474592]
[1729653784892,0.27785054,67014.0,67013.0,0.0002]
[1729653785701,0.261021,67014.0,67013.0,0.07474592]
[1729653785904,0.059724,67011.0,67010.0,0.08954675]
[1729653786206,0.059724,67011.0,67008.0,0.0002]
[1729653786207,0.059726,67009.0,67008.0,0.0002]
[1729653787097,0.393,67010.0,67007.0,0.0002]
[1729653787295,0.059727,67008.0,67007.0,0.0002]
[1729653787697,0.677447,67008.0,67007.0,0.0002]
[1729653789498,0.677447,67008.0,67007.0,0.04489797]
[1729653789899,0.677447,67008.0,67007.0,0.0002]
[1729653790101,0.229727,67008.0,67007.0,0.0002]
[1729653790500,0.229727,67008.0,67007.0,0.04489193]
[1729653791014,0.229727,67008.0,66999.0,0.0002]
[1729653791015,0.059734,67000.0,66999.0,0.0002]
[1729653791206,0.590534,67000.0,66999.0,0.0002]
[1729653792917,0.5308,67000.0,66995.0,0.00263884]
[1729653793108,0.05974,66993.0,66992.0,0.0006]
[1729653793306,0.22974,66993.0,66992.0,0.0006]
[1729653794403,0.17,66993.0,66992.0,0.0006]
[1729653794609,0.17,66993.0,66992.0,0.060341]
[1729653795013,0.39974,66993.0,66992.0,0.0006]
[1729653795207,0.26274,66993.0,66992.0,0.0006]
[1729653796006,0.43274,66993.0,66992.0,0.0006]
[1729653796214,0.46304,66993.0,66992.0,0.0006]
[1729653796410,0.49554,66993.0,66992.0,0.0006]
[1729653796612,0.059742,66991.0,66990.0,0.0004]
[1729653801122,0.059744,66989.0,66988.0,0.0002]
[1729653801421,0.399744,66989.0,66988.0,0.0002]
[1729653802307,0.22,66989.0,66988.0,0.0002]
[1729653802811,0.279744,66989.0,66988.0,0.0002]
[1729653807815,0.279744,66989.0,66988.0,0.09762681]
[1729653808014,0.279744,66989.0,66988.0,0.0002]
[1729653813528,0.3608,66990.0,66989.0,0.059744]
[1729653813830,0.37846258,66998.0,66992.0,0.059741]
[1729653814025,0.05974,66994.0,66992.0,0.059741]
[1729653814525,0.05974,66994.0,66993.0,0.09743659]
[1729653814922,0.27974,66994.0,66993.0,0.09743659]
[1729653815127,0.27974,66994.0,66989.0,0.08974675]
[1729653815128,0.059742,66992.0,66989.0,0.059943]
[1729653815329,0.059742,66992.0,66990.0,0.09736859]
[1729653815528,0.059742,66992.0,66991.0,0.09736859]
[1729653816425,0.169742,66992.0,66991.0,0.09736859]
[1729653816818,0.169742,66992.0,66991.0,0.15711059]
[1729653816819,0.11,66992.0,66991.0,0.15711059]
[1729653817023,0.11,66992.0,66991.0,0.24665734]
[1729653817828,0.11,66992.0,66991.0,0.18691534]
[1729653818326,0.11,66992.0,66991.0,0.09736859]
[1729653819837,0.169741,66992.0,66991.0,0.09736859]
[1729653821938,0.169741,66992.0,66991.0,0.09748183]
[1729653822136,0.169741,66992.0,66991.0,0.18702858]
[1729653822838,0.11,66992.0,66991.0,0.18702858]
[1729653823541,0.11,66992.0,66991.0,0.09748183]
[1729653824035,0.11,66992.0,66991.0,0.15722383]
[1729653824238,0.36140001,66998.0,66991.0,0.29702858]
[1729653824426,0.00060001,66998.0,66997.0,0.059937]
[1729653824627,0.11060001,66998.0,66997.0,0.27317233]
[1729653826036,0.11060001,66998.0,66997.0,0.27241422]
[1729653827127,0.11060001,66998.0,66997.0,0.15687173]
[1729653828446,0.11060001,66998.0,66997.0,0.17377917]
[1729653829436,0.11060001,66998.0,66997.0,0.2632201]
[1729653829940,0.11060001,66998.0,66997.0,0.17377917]
[1729653830132,0.17033601,66998.0,66997.0,0.17377917]
[1729653831442,0.17033601,66998.0,66997.0,0.09720468]
[1729653832237,0.06033601,66998.0,66997.0,0.09720468]
[1729653832439,0.17033601,66998.0,66997.0,0.09720468]
[1729653832633,0.06033601,66998.0,66997.0,0.09720468]
[1729653832935,0.17033601,66998.0,66997.0,0.09720468]
[1729653833146,0.17033601,66998.0,66997.0,0.17173375]
[1729653833443,0.17033601,66998.0,66997.0,0.0002]
[1729653834633,0.20727134,66998.0,66997.0,0.0002]
[1729653837738,0.22491799,66998.0,66997.0,0.0002]
[1729653840335,0.18798266,66998.0,66997.0,0.07472907]
[1729653840537,0.18798266,66998.0,66997.0,0.17196203]
[1729653841151,0.18798266,66998.0,66997.0,0.07472907]
[1729653841453,0.18798266,66998.0,66997.0,0.17196405]
[1729653842549,0.18798266,66998.0,66997.0,0.17198919]
[1729653843350,0.18798266,66998.0,66997.0,0.07472907]
[1729653843551,0.18798266,66998.0,66997.0,0.17200376]
[1729653844053,0.18798266,66998.0,66997.0,0.17200414]
[1729653847346,0.18798266,66998.0,66997.0,0.09747507]
[1729653847749,0.18798266,66998.0,66997.0,0.17207281]
[1729653847957,0.54878266,66998.0,66997.0,0.17207281]
[1729653848252,0.58590884,66998.0,66997.0,0.0002]
[1729653848657,0.58590937,66998.0,66997.0,0.0002]
[1729653851352,0.22510937,66998.0,66997.0,0.0002]
[1729653852956,0.32690937,66998.0,66997.0,0.0002]
[1729653853154,0.05537337,66998.0,66997.0,0.0002]
[1729653853460,0.16540707,66998.0,66997.0,0.059937]
[1729653854249,0.14776042,66998.0,66997.0,0.059937]
[1729653855068,0.03776042,66998.0,66997.0,0.059937]
[1729653855270,0.14776042,66998.0,66997.0,0.059937]
[1729653855570,0.11060001,66998.0,66997.0,0.15724268]
[1729653856462,0.00060001,66998.0,66997.0,0.15724268]
[1729653856664,0.11060001,66998.0,66997.0,0.15724268]
[1729653857258,0.11060001,66998.0,66997.0,0.18694661]
[1729653857462,0.17033601,66998.0,66997.0,0.07483199]
[1729653857662,0.17033601,66998.0,66997.0,0.0002]
[1729653858154,0.17033601,66998.0,66997.0,0.07483199]
[1729653858155,0.06033601,66998.0,66997.0,0.07483199]
[1729653858365,0.17033601,66998.0,66997.0,0.0977837]
[1729653858562,0.17033601,66998.0,66997.0,0.18722463]
[1729653859572,0.17033601,66998.0,66997.0,0.0977837]
[1729653860455,0.17033601,66998.0,66997.0,0.18722463]
[1729653860854,0.17033601,66998.0,66997.0,0.0977837]
[1729653861260,0.17033601,66998.0,66997.0,0.18737977]
[1729653862567,0.17033601,66998.0,66997.0,0.0977837]
[1729653862770,0.17033601,66998.0,66997.0,0.09765388]
[1729653862966,0.11060001,66998.0,66997.0,0.2138273]
[1729653864760,0.17033601,66998.0,66997.0,0.2138273]
[1729653865160,0.53113601,66998.0,66997.0,0.09765388]
[1729653865573,0.53113601,66998.0,66997.0,0.2138785]
[1729653865768,0.53113601,66998.0,66997.0,0.09765388]
[1729653867864,0.53113601,66998.0,66997.0,0.1872862]
[1729653868382,0.53113601,66998.0,66997.0,0.18728682]
[1729653869281,0.53113601,66998.0,66997.0,0.18738087]
[1729653870077,0.53113601,66998.0,66997.0,0.09774793]
[1729653870581,0.56805869,66998.0,66997.0,0.0002]
[1729653870769,0.64113601,66998.0,66989.0,0.0002]
[1729653871078,0.640543,66990.0,66989.0,0.0002]
[1729653871278,0.67729006,66990.0,66989.0,0.0002]
[1729653871979,0.67694699,66990.0,66989.0,0.0002]
[1729653874777,0.6937736,66990.0,66989.0,0.0002]
[1729653877180,0.65736961,66990.0,66989.0,0.0002]
[1729653879579,0.75764961,66990.0,66989.0,0.0002]
[1729653882777,0.43736961,66990.0,66989.0,0.0002]
[1729653882979,0.65736961,66990.0,66989.0,0.0002]
[1729653887085,0.29656961,66990.0,66989.0,0.0002]
[1729653887588,0.65736961,66990.0,66989.0,0.0002]
[1729653887982,0.29656961,66990.0,66989.0,0.0002]
[1729653888385,0.65736961,66990.0,66989.0,0.0002]
[1729653891486,0.29656961,66990.0,66989.0,0.0002]
[1729653892494,0.29656961,66990.0,66989.0,0.09787552]
[1729653894293,0.39620961,66990.0,66989.0,0.09787552]
[1729653895902,0.39620961,66990.0,66989.0,0.09791662]
[1729653900496,0.39620961,66990.0,66989.0,0.18754956]
[1729653901199,0.39620961,66990.0,66989.0,0.09791662]
[1729653902996,0.75700961,66990.0,66989.0,0.09791662]
[1729653907490,0.75700961,66990.0,66989.0,0.0002]
[1729653909590,0.65736961,66990.0,66989.0,0.0002]
[1729653910109,0.75700961,66990.0,66989.0,0.0002]
[1729653911193,0.65736961,66990.0,66989.0,0.0002]
[1729653911404,0.75700961,66990.0,66989.0,0.0002]
[1729653913198,0.80726661,66990.0,66987.0,0.0002]
[1729653913405,0.80726661,66990.0,66972.0,0.14939094]
[1729653913406,0.0318,66989.0,66979.0,0.0002]
[1729653913707,0.0318,66989.0,66971.0,0.0002]
[1729653913708,0.059756,66975.0,66971.0,0.0002]
[1729653913903,0.379396,66975.0,66971.0,0.0002]
[1729653915608,0.379396,66975.0,66974.0,0.1868273]
[1729653917009,0.379396,66975.0,66974.0,0.09719436]
[1729653917204,0.059756,66975.0,66974.0,0.09719436]
[1729653917411,0.3608,66980.0,66974.0,0.6347473]
[1729653917612,0.11,66981.0,66979.0,0.0002]
[1729653917807,0.11,66981.0,66980.0,0.27187919]
[1729653918116,0.11,66981.0,66980.0,0.63267919]
[1729653919911,0.00060001,66988.0,66984.0,0.059748]
[1729653920107,0.00060001,66988.0,66987.0,0.0002]
[1729653920306,0.00060001,66988.0,66987.0,0.15676391]
[1729653921511,0.11060001,66988.0,66987.0,0.15676391]
[1729653922407,0.00060001,66988.0,66987.0,0.60460391]
[1729653922614,0.11060001,66988.0,66987.0,0.868585]
[1729653923213,0.00060001,66988.0,66987.0,0.868585]
[1729653923514,0.00060001,66996.0,66995.0,0.059738]
[1729653923717,0.00060001,66996.0,66995.0,0.059938]
[1729653923916,0.00060001,66996.0,66995.0,0.0325]
[1729653924128,0.06033701,66996.0,66995.0,0.0002]
[1729653925922,0.17033701,66996.0,66995.0,0.0002]
[1729653926125,0.06033701,66996.0,66995.0,0.0002]
[1729653926717,0.07715958,66996.0,66995.0,0.0002]
[1729653927710,0.07715958,66996.0,66987.0,0.0002]
[1729653927711,0.059745,66988.0,66987.0,0.0002]
[1729653927916,0.640545,66988.0,66987.0,0.0002]
[1729653935330,0.420545,66988.0,66987.0,0.0002]
[1729653935525,0.3608,66988.0,66987.0,0.0002]
[1729653935726,0.11,66992.0,66987.0,0.23099135]
[1729653935928,0.11,66990.0,66988.0,0.07453565]
[1729653936123,0.11,66990.0,66987.0,0.092645]
[1729653936124,0.11,66990.0,66989.0,0.07453565]
[1729653936326,0.11,66990.0,66989.0,0.17085969]
[1729653936533,0.169743,66990.0,66988.0,0.07453421]
[1729653937118,0.11,66990.0,66989.0,0.096287]
[1729653937324,0.11,66990.0,66989.0,0.457087]
[1729653937623,0.11,66990.0,66987.0,0.18216064]
[1729653937624,0.11,66990.0,66988.0,0.0316]
[1729653938335,0.11,66990.0,66988.0,0.3924]
[1729653938631,0.169743,66990.0,66988.0,0.0316]
[1729653938833,0.059744,66989.0,66987.0,0.0002]
[1729653939022,0.059745,66988.0,66987.0,0.0002]
[1729653941635,0.169745,66988.0,66987.0,0.0002]
[1729653942022,0.059745,66988.0,66987.0,0.0002]
[1729653942735,0.169745,66988.0,66987.0,0.0002]
[1729653944629,0.07687451,66988.0,66987.0,0.0002]
[1729653944824,0.059745,66988.0,66987.0,0.0002]
[1729653946234,0.059745,66988.0,66987.0,0.17132077]
[1729653946537,0.11,66988.0,66987.0,0.07473163]
[1729653946938,0.169745,66988.0,66987.0,0.07473163]
[1729653947137,0.169745,66988.0,66987.0,0.09676741]
[1729653947438,0.169745,66988.0,66987.0,0.0002]
[1729653948350,0.169745,66988.0,66987.0,0.07479458]
[1729653949633,0.169745,66988.0,66987.0,0.0002]
[1729653950037,0.11,66988.0,66987.0,0.09683471]
[1729653953639,0.169745,66988.0,66987.0,0.09683471]
[1729653954043,0.169745,66988.0,66987.0,0.0002]
[1729653955042,0.169745,66988.0,66987.0,0.0969684]
[1729653956637,0.169745,66988.0,66987.0,0.18648404]
[1729653957339,0.169745,66988.0,66987.0,0.0969684]
[1729653957953,0.279745,66988.0,66987.0,0.0969684]
[1729653958744,0.279745,66988.0,66987.0,0.17165111]
[1729653959048,0.279745,66988.0,66987.0,0.0969684]
[1729653959942,0.3173223,66988.0,66987.0,0.0002]
[1729653960256,0.3609492,66988.0,66987.0,0.0002]
[1729653962240,0.31735731,66988.0,66987.0,0.0002]
[1729653963052,0.09735731,66988.0,66987.0,0.0002]
[1729653963253,0.31735731,66988.0,66987.0,0.0002]
[1729653963446,0.25099964,66988.0,66987.0,0.0002]
[1729653963848,0.20735731,66988.0,66987.0,0.0002]
[1729653968161,0.169745,66988.0,66987.0,0.09718017]
[1729653968371,0.169745,66988.0,66987.0,0.0002]
[1729653974653,0.530545,66988.0,66987.0,0.0002]
[1729653975161,0.56813153,66988.0,66987.0,0.0002]
[1729653975757,0.45813153,66988.0,66987.0,0.0002]
[1729653978259,0.56813153,66988.0,66987.0,0.0002]
[1729653980959,0.56796937,66988.0,66987.0,0.0002]
[1729653983163,0.530545,66988.0,66987.0,0.09732427]
[1729653984868,0.420545,66988.0,66987.0,0.09732427]
[1729653985062,0.3608,66988.0,66987.0,0.09732427]
[1729653985269,0.05974,66994.0,66991.0,0.059742]
[1729653985464,0.3608,66995.0,66994.0,0.059739]
[1729653985766,0.4708,66995.0,66994.0,0.18661078]
[1729653985963,0.4708,66995.0,66994.0,0.09696124]
[1729653986171,0.530538,66995.0,66994.0,0.09696124]
[1729653987657,0.169738,66995.0,66994.0,0.09696124]
[1729653989374,0.530538,66995.0,66994.0,0.0748123]
[1729653989773,0.530538,66995.0,66994.0,0.0002]
[1729653992967,0.561738,66995.0,66994.0,0.0002]
[1729653994868,0.059745,66988.0,66987.0,0.0002]
[1729653995182,0.640545,66988.0,66987.0,0.0002]
[1729653995377,0.530545,66988.0,66987.0,0.0002]
[1729653996183,0.640545,66988.0,66987.0,0.0002]
[1729653998074,0.67816076,66988.0,66987.0,0.0002]
[1729653998668,0.6955243,66988.0,66987.0,0.0002]
[1729654004777,0.4755243,66988.0,66987.0,0.0002]
[1729654004982,0.6955243,66988.0,66987.0,0.0002]
[1729654005184,0.65790854,66988.0,66987.0,0.0002]
[1729654007681,0.65790854,66988.0,66987.0,0.0748123]
[1729654007880,0.65790854,66988.0,66987.0,0.0002]
[1729654011984,0.43790854,66988.0,66987.0,0.0002]
[1729654012188,0.43790854,66988.0,66987.0,0.0748123]
[1729654012189,0.54790854,66988.0,66987.0,0.0748123]
[1729654012374,0.37816354,66988.0,66987.0,0.2668322]
[1729654012782,0.37816354,66988.0,66987.0,0.1568322]
[1729654013282,0.37816354,66988.0,66987.0,0.059945]
[1729654013484,0.11,66990.0,66987.0,0.059945]
[1729654013778,0.11,66990.0,66989.0,0.0002]
[1729654014575,0.12735086,66990.0,66989.0,0.0002]
[1729654014888,0.16490801,66990.0,66989.0,0.0002]
[1729654015092,0.12735086,66990.0,66989.0,0.0002]
[1729654015687,0.18709386,66990.0,66989.0,0.0002]
[1729654016092,0.22457704,66990.0,66989.0,0.0002]
[1729654018391,0.18709386,66990.0,66989.0,0.0002]
[1729654018588,0.22463947,66990.0,66989.0,0.0002]
[1729654020298,0.18709386,66990.0,66989.0,0.0002]
[1729654022491,0.07709386,66990.0,66989.0,0.0002]
[1729654022679,0.18709386,66990.0,66989.0,0.0002]
[1729654025190,0.07709386,66990.0,66989.0,0.0002]
[1729654025491,0.18709386,66990.0,66989.0,0.0002]
[1729654028185,0.2681476,66990.0,66989.0,0.0002]
[1729654028385,0.31773498,66990.0,66989.0,0.0002]
[1729654030197,0.88854246,66990.0,66989.0,0.0002]
[1729654030497,0.059746,66986.0,66985.0,0.0002]
[1729654030697,0.31834516,66986.0,66985.0,0.0002]
[1729654030911,0.44907376,66986.0,66985.0,0.0002]
[1729654032496,0.3004746,66986.0,66985.0,0.0002]
[1729654033196,0.44907376,66986.0,66985.0,0.0002]
[1729654034101,0.3004746,66986.0,66985.0,0.0002]
[1729654034596,0.44907376,66986.0,66985.0,0.0002]
[1729654034994,0.3004746,66986.0,66985.0,0.0002]
[1729654035298,0.169746,66986.0,66985.0,0.07481471]
[1729654035602,0.169746,66986.0,66985.0,0.0002]
[1729654035789,0.530546,66986.0,66985.0,0.0002]
[1729654037001,0.530546,66986.0,66985.0,0.17176456]
[1729654037303,0.530546,66986.0,66985.0,0.07481471]
[1729654037502,0.530546,66986.0,66985.0,0.0002]
[1729654038699,0.169746,66986.0,66985.0,0.0002]
[1729654038898,0.530546,66986.0,66985.0,0.0002]
[1729654039300,0.169746,66986.0,66985.0,0.0002]
[1729654039501,0.530546,66986.0,66985.0,0.0002]
[1729654043310,0.630506,66986.0,66985.0,0.0002]
[1729654044095,0.269706,66986.0,66985.0,0.0002]
[1729654044406,0.630506,66986.0,66985.0,0.0002]
[1729654046907,0.530546,66986.0,66985.0,0.0002]
[1729654047107,0.628986,66986.0,66985.0,0.0002]
[1729654048712,1.076826,66986.0,66981.0,0.07501471]
[1729654048914,0.27975,66982.0,66981.0,0.0004]
[1729654050512,0.31728614,66982.0,66981.0,0.0004]
[1729654051109,0.20728614,66982.0,66981.0,0.0004]
[1729654053116,0.31728614,66982.0,66981.0,0.0004]
[1729654053312,0.33493557,66982.0,66981.0,0.0004]
[1729654053616,0.22493557,66982.0,66981.0,0.0004]
[1729654054118,0.43337557,66982.0,66981.0,0.0004]
[1729654054310,0.32337557,66982.0,66981.0,0.0004]
[1729654054505,0.32335407,66982.0,66981.0,0.0004]
[1729654054923,0.36690917,66982.0,66981.0,0.0004]
[1729654056008,0.72770917,66982.0,66981.0,0.0004]
[1729654057814,0.83770917,66982.0,66981.0,0.0004]
[1729654058420,0.75663943,66982.0,66981.0,0.0004]
[1729654059519,0.059751,66981.0,66976.0,0.05973647]
[1729654059727,0.059763,66967.0,66966.0,0.0002]
[1729654059927,0.739003,66967.0,66966.0,0.09737187]
[1729654060222,0.519003,66967.0,66966.0,0.09737187]
[1729654060527,0.739003,66967.0,66966.0,0.0002]
[1729654061014,0.629003,66967.0,66966.0,0.0002]
[1729654062121,0.420563,66967.0,66966.0,0.0002]
[1729654062325,0.530563,66967.0,66966.0,0.0002]
[1729654062711,0.3608,66967.0,66966.0,0.0002]
[1729654062913,0.059756,66975.0,66968.0,0.059762]
[1729654063220,0.00060001,66980.0,66978.0,0.059753]
[1729654063418,0.00060001,66980.0,66979.0,0.650773]
[1729654063611,0.00060001,66985.0,66984.0,0.169748]
[1729654063815,0.11060001,66990.0,66984.0,0.62273142]
[1729654064013,0.11060001,66990.0,66989.0,0.0002]
[1729654065423,0.25919917,66990.0,66989.0,0.0002]
[1729654065827,0.52102875,66990.0,66989.0,0.0002]
[1729654066024,0.43217259,66990.0,66989.0,8.558e-05]
[1729654066518,0.54563147,66990.0,66989.0,8.558e-05]
[1729654066724,0.44981436,66990.0,66989.0,8.558e-05]
[1729654066918,0.38217259,66990.0,66989.0,8.558e-05]
[1729654067909,0.54526651,66990.0,66989.0,8.558e-05]
[1729654068511,0.38217259,66990.0,66989.0,8.558e-05]
[1729654071522,0.32454272,66990.0,66989.0,8.558e-05]
[1729654072811,0.23034301,66990.0,66989.0,8.558e-05]
[1729654073011,0.32444738,66990.0,66989.0,8.558e-05]
[1729654073423,0.23034301,66990.0,66989.0,8.558e-05]
[1729654075516,0.32994301,66990.0,66989.0,8.558e-05]
[1729654075719,0.059746,66986.0,66985.0,0.00084]
[1729654075917,0.059747,66985.0,66984.0,0.0002]
[1729654078539,0.121947,66985.0,66984.0,0.0002]
[1729654078718,0.291947,66985.0,66984.0,0.0002]
[1729654080337,0.13891404,66985.0,66984.0,0.0002]
[1729654080521,0.10701404,66985.0,66984.0,0.0002]
[1729654080727,0.17631404,66985.0,66984.0,0.0002]
[1729654081033,0.07671404,66985.0,66984.0,0.0002]
[1729654081234,0.17631404,66985.0,66984.0,0.0002]
[1729654081625,0.07671404,66985.0,66984.0,0.0002]
[1729654081824,0.17631404,66985.0,66984.0,0.0002]
[1729654083623,0.07671404,66985.0,66984.0,0.0002]
[1729654083919,0.17631404,66985.0,66984.0,0.0002]
[1729654086232,0.28631404,66985.0,66984.0,0.0002]
[1729654086626,0.18671404,66985.0,66984.0,0.0002]
[1729654088531,0.23040794,66985.0,66984.0,0.0002]
[1729654089125,0.33898557,66985.0,66984.0,8.502e-05]
[1729654089326,0.3004077,66985.0,66984.0,8.502e-05]
[1729654089526,0.09483895,66985.0,66984.0,8.502e-05]
[1729654089733,0.04388565,66985.0,66984.0,8.502e-05]
[1729654090122,0.15388565,66985.0,66984.0,8.502e-05]
[1729654090333,0.26485535,66985.0,66984.0,8.502e-05]
[1729654094743,0.32274166,66985.0,66984.0,8.502e-05]
[1729654095041,0.26485535,66985.0,66984.0,8.502e-05]
[1729654095234,0.32262225,66985.0,66984.0,8.502e-05]
[1729654095433,0.169747,66985.0,66984.0,8.502e-05]
[1729654096033,0.18673014,66985.0,66984.0,8.502e-05]
[1729654101942,0.54753014,66985.0,66984.0,8.502e-05]
[1729654103148,0.65753014,66985.0,66984.0,8.502e-05]
[1729654103644,0.76674653,66985.0,66984.0,3.653e-05]
[1729654103836,1.32457653,66985.0,66984.0,3.653e-05]
[1729654104250,0.059751,66981.0,66980.0,0.0002]
[1729654104435,0.43685835,66981.0,66980.0,0.0002]
[1729654104635,0.97860703,66981.0,66980.0,0.0002]
[1729654105139,0.97860703,66981.0,66975.0,0.0002]
[1729654105140,0.059755,66976.0,66975.0,0.0002]
[1729654105343,0.79185103,66976.0,66975.0,0.0002]
[1729654105552,1.4028416,66976.0,66975.0,0.0002]
[1729654105741,1.33770829,66976.0,66975.0,0.0002]
[1729654106140,1.27047103,66976.0,66975.0,0.0002]
[1729654106338,1.41871426,66976.0,66975.0,0.0002]
[1729654106535,1.27047103,66976.0,66975.0,0.0002]
[1729654106739,0.71255103,66976.0,66975.0,0.0002]
[1729654107048,0.82255103,66976.0,66975.0,0.0002]
[1729654110050,0.78153103,66976.0,66975.0,0.0002]
[1729654110352,0.89153103,66976.0,66975.0,0.0002]
[1729654110553,0.740235,66976.0,66975.0,0.0002]
[1729654111754,0.75705368,66976.0,66975.0,0.0002]
[1729654116354,0.65737368,66976.0,66975.0,0.0002]
[1729654116659,0.75705368,66976.0,66975.0,0.0002]
[1729654117554,0.85038761,66976.0,66975.0,0.0002]
[1729654118355,0.85037183,66976.0,66975.0,0.0002]
[1729654118555,0.85044491,66976.0,66975.0,0.0002]
[1729654118858,0.8002356,66976.0,66975.0,0.0002]
[1729654119059,0.85046682,66976.0,66975.0,0.0002]
[1729654119444,0.8002356,66976.0,66975.0,0.0002]
[1729654119648,0.85046615,66976.0,66975.0,0.0002]
[1729654120057,0.8002356,66976.0,66975.0,0.0002]
[1729654120355,0.5905556,66976.0,66975.0,0.0002]
[1729654120660,0.8002356,66976.0,66975.0,0.0002]
[1729654121068,0.4394356,66976.0,66975.0,0.0002]
[1729654122158,0.48962411,66976.0,66975.0,0.0002]
[1729654122959,0.44644219,66976.0,66975.0,0.0002]
[1729654123255,0.48970059,66976.0,66975.0,0.0002]
[1729654123459,0.48973389,66976.0,66975.0,0.0002]
[1729654125652,0.39625368,66976.0,66975.0,0.0002]
[1729654129553,0.29657368,66976.0,66975.0,0.0002]
[1729654129758,0.39625368,66976.0,66975.0,0.0002]
[1729654131870,0.75705368,66976.0,66975.0,0.0002]
[1729654134264,0.65737368,66976.0,66975.0,0.0002]
[1729654134469,0.75589368,66976.0,66975.0,0.0002]
[1729654134669,0.65737368,66976.0,66975.0,0.0002]
[1729654134870,0.75589368,66976.0,66975.0,0.0002]
[1729654136258,0.86589368,66976.0,66975.0,0.0002]
[1729654136459,0.059756,66975.0,66974.0,0.0002]
[1729654141864,0.507676,66975.0,66962.0,0.45024753]
[1729654142066,0.059778,66950.0,66949.0,0.07382319]
[1729654142270,0.059778,66950.0,66938.0,0.0705]
[1729654142271,0.059783,66945.0,66938.0,0.0705]
[1729654142465,1.658303,66945.0,66944.0,0.12690299]
[1729654142666,1.5,66945.0,66940.0,0.14921546]
[1729654142862,1.59852,66945.0,66941.0,0.0322]
[1729654143064,0.11,66942.0,66941.0,0.0322]
[1729654143262,0.11,66942.0,66938.0,0.0705]
[1729654143564,0.04505011,66941.0,66939.0,0.033]
[1729654143772,0.04505011,66940.0,66939.0,0.033]
[1729654143975,0.15505011,66940.0,66939.0,0.033]
[1729654144162,0.04505011,66940.0,66939.0,0.033]
[1729654144363,0.21505011,66940.0,66939.0,0.033]
[1729654146162,0.17,66940.0,66939.0,0.033]
[1729654149173,0.229787,66940.0,66939.0,0.033]
[1729654149369,0.17,66940.0,66939.0,0.033]
[1729654150774,0.27532,66940.0,66939.0,0.033]
[1729654151475,0.17,66940.0,66939.0,0.033]
[1729654152070,0.01735287,66942.0,66939.0,0.033]
[1729654152071,0.5308,66944.0,66939.0,0.0635]
[1729654152276,0.5308,66944.0,66943.0,0.0002]
[1729654152460,0.17060001,66944.0,66943.0,0.0002]
[1729654153769,0.00060001,66944.0,66943.0,0.0002]
[1729654154076,0.00060001,66944.0,66943.0,0.44832]
[1729654154389,0.00060001,66944.0,66943.0,0.0002]
[1729654163768,0.00060001,66944.0,66943.0,0.1702]
[1729654163969,0.3608,66950.0,66943.0,0.97912]
[1729654164171,0.36140001,66950.0,66949.0,0.0002]
[1729654165472,0.36140001,66950.0,66949.0,0.1702]
[1729654165680,0.059767,66963.0,66954.0,0.059775]
[1729654165879,0.059767,66963.0,66957.0,0.1702]
[1729654165880,0.36140001,66958.0,66957.0,0.1702]
[1729654166080,0.059767,66963.0,66957.0,0.531]
[1729654166275,0.059767,66963.0,66962.0,0.17]
[1729654166276,0.00060001,66963.0,66962.0,0.17]
[1729654166475,0.17,66975.0,66962.0,0.17]
[1729654166682,0.17,66975.0,66968.0,0.17]
[1729654166683,0.059761,66970.0,66968.0,0.17]
[1729654166881,0.059761,66970.0,66969.0,0.0321]